[Event "Polish Youth B18 Championship 2023"]
[Site "Jastrzebia Gora"]
[Date "2023.03.13"]
[Round "3.3"]
[White "Luberanski, Jakub"]
[Black "Wilk, Igor"]
[Result "1-0"]
[ECO "E12"]
[WhiteElo "2242"]
[BlackElo "2058"]
[Annotator "TA"]
[PlyCount "67"]
[EventDate "2023.03.11"]
[EventType "swiss"]
[EventCountry "POL"]
[SourceTitle "playchess.com"]
[Source "ChessBase"]
[SourceQuality "1"]
[TimeControl "40/5400+30:1800+30"]

{[%evp 19,67,18,27,8,31,0,102,95,150,38,38,0,29,0,3,0,0,0,0,-40,0,-59,-39,-41,-38,-43,-53,-46,-37,-44,-24,-24,-27,-26,0,-15,19,2,72,47,153,137,188,177,29984,29985,29996,29997,29997,29998]} 1. d4 {[%emt 0:00:04]} Nf6 {[%emt 0:00:13]} 2. c4 {[%emt 0:00:04]} e6 {[%emt 0:00:05]} 3. Nf3 {[%emt 0:00:03]} b6 {[%emt 0:00:44]} 4. a3 {[%emt 0:02:22]} Bb7 {[%emt 0:01:43]} 5. Nc3 {[%emt 0:00:06]} Be7 {[%emt 0:00:56]} 6. Qc2 {[%emt 0:00:19]} d5 {[%emt 0:01:34]} 7. cxd5 {[%emt 0:00:05]} exd5 {[%emt 0:00:16]} 8. g3 {[%emt 0:00:06]} O-O {[%emt 0:00:43]} 9. Bg2 {[%emt 0:00:06]} Nbd7 {[%emt 0:01:37]} 10. O-O {[%emt 0:00:08]} c5 {[%emt 0:02:19]} 11. Rd1 {[%emt 0:01:52] E12: Queen's Indian: Unusual White 4th moves, 4 a3, 4 Nc3 Bb7 5 a3 and 4 Nc3 Bb7 .} Rc8 {[%emt 0:02:21]} 12. Bf4 {[%emt 0:02:05] [#]} c4 $146 {[%emt 0:07:52]} (12... Ne4 $11) ({Predecessor:} 12... Ne4 13. Rac1 Bf6 14. Qb3 Nxc3 15. bxc3 Re8 16. Bh3 Bc6 17. Be5 Bxe5 18. Nxe5 Nxe5 19. Bxc8 Qxc8 20. dxe5 Rxe5 21. Qc2 {0-1 Radjabov,T (2628)-Ljubojevic,L (2557) Olympiad-35 Bled 2002 (11.1)}) 13. Ne5 $1 $16 {[%emt 0:01:47] White is better.} Re8 {[%emt 0:01:16] [#]} ({Black should play} 13... a6) 14. Bh3 {[%emt 0:00:42] White has more active pieces.} ({Better is} 14. Qa4 $1 $16) 14... a6 $14 {[%emt 0:08:06]} 15. Re1 {[%emt 0:15:17]} Ra8 {[%emt 0:04:18]} 16. Rad1 {[%emt 0:04:34][%cal Oe2e4]} b5 {[%emt 0:02:28]} 17. Nxd7 {[%emt 0:09:36]} (17. e3 {seems wilder.} h6 18. Bg2 g5 19. Nxd7 Qxd7 20. Be5) 17... Nxd7 {[%emt 0:00:10]} 18. Bg2 {[%emt 0:00:03]} Nf6 {[%emt 0:03:17]} 19. Be5 {[%emt 0:07:06]} Rc8 {[%emt 0:04:40]} 20. Qf5 {[%emt 0:08:51]} (20. Bh3 $11) 20... g6 {[%emt 0:03:54]} 21. Qf4 {[%emt 0:02:38]} Nh5 {[%emt 0:05:18]} 22. Qf3 {[%emt 0:01:23][%cal Rc3d5]} f6 {[%emt 0:05:22]} 23. Bf4 {[%emt 0:01:13]} Nxf4 {[%emt 0:00:23]} 24. gxf4 {[%emt 0:00:23][%cal Rc3d5,Bg3f4,Bf4f5][%mdl 32]} b4 {[%emt 0:00:53]} (24... f5 {keeps more tension.} 25. Nxd5 Kg7 26. e4 fxe4 27. Qxe4 Bd6) 25. axb4 {[%emt 0:11:48]} Bxb4 {[%emt 0:00:20]} 26. f5 {[%emt 0:00:04]} Kg7 {[%emt 0:03:44]} 27. Kh1 {[%emt 0:00:37]} Qd6 {[%emt 0:02:04]} (27... g5 {is more complex.} 28. Qh5 Re7 29. h4 Qe8) 28. Rg1 {[%emt 0:00:22]} Bxc3 {[%emt 0:01:30]} (28... Re7 $11 {remains equal.}) 29. bxc3 $16 {[%emt 0:00:13]} Qe7 {[%emt 0:02:10]} (29... Rc7 $14) 30. fxg6 {[%emt 0:02:38]} hxg6 {[%emt 0:01:05]} (30... h6 $16 {was worth a try.} 31. Rb1 a5) 31. Bh3 $18 {[%emt 0:00:22][%cal Og1g6] Black must now prevent Rxg6+!} Rc7 $2 {[%emt 0:03:33] [#]} (31... g5 $18 32. Bxc8 Bxc8) 32. Rxg6+ $3 {[%emt 0:01:09][%mdl 576] Decoy, Clearance. White mates.} Kxg6 {[%emt 0:01:14]} (32... Kf7 33. Rdg1) 33. Rg1+ {[%emt 0:00:05]} Kh6 {[%emt 0:00:15]} 34. Qf4+ {[%emt 0:00:05] Artfully played by Luberanski.   Weighted Error Value: White=0.15 (very precise) /Black=0.52} 1-0

[Event "Polish Youth B18 Championship 2023"]
[Site "Jastrzebia Gora"]
[Date "2023.03.13"]
[Round "3.4"]
[White "Ochedzan, Tymon"]
[Black "Luczak, Filip"]
[Result "1/2-1/2"]
[ECO "C10"]
[WhiteElo "2240"]
[BlackElo "2345"]
[Annotator "TA"]
[PlyCount "60"]
[EventDate "2023.03.11"]
[EventType "swiss"]
[EventCountry "POL"]
[SourceTitle "playchess.com"]
[Source "ChessBase"]
[SourceQuality "1"]
[TimeControl "40/5400+30:1800+30"]

{[%evp 9,60,14,31,20,29,9,23,7,6,0,0,0,0,6,10,-4,-7,-11,-10,-6,-9,-23,0,-16,-14,-13,-13,0,0,0,0,0,0,-14,0,0,0,-13,-8,-32,-33,-33,-25,-75,-70,-60,-47,-33,-21,-25,0,-42,-19]} 1. e4 {[%emt 0:00:07]} e6 {[%emt 0:00:36]} 2. d4 {[%emt 0:00:10]} d5 {[%emt 0:00:10]} 3. Nc3 {[%emt 0:00:11]} dxe4 {[%emt 0:00:05]} 4. Nxe4 {[%emt 0:00:07]} Nd7 {[%emt 0:00:02]} 5. g3 {[%emt 0:02:38]} b6 {[%emt 0:01:27]} 6. Bg2 {[%emt 0:03:02][%cal Oe4d6] C10: French with 3 Nc3: Unusual Black 3rd moves and 3...dxe4.} Rb8 {[%emt 0:00:05]} 7. Ne2 {[%emt 0:09:23]} Ngf6 {[%emt 0:03:18] [#]} 8. Nxf6+ $146 {[%emt 0:02:15] White has an edge.} ({Predecessor:} 8. Qd3 Nxe4 9. Bxe4 Bb7 10. Bxb7 Rxb7 11. Be3 Nf6 12. O-O-O Be7 13. h4 O-O 14. h5 {1-0 Webb,M (2124)-Burgin,R (2030) Scarborough op 2014 (2)}) 8... Nxf6 {[%emt 0:02:34]} 9. c4 {[%emt 0:00:19]} Bb4+ {[%emt 0:02:18]} 10. Bd2 {[%emt 0:03:58]} Bxd2+ {[%emt 0:00:13]} 11. Qxd2 {[%emt 0:00:04]} Bb7 {[%emt 0:03:18]} 12. Bxb7 {[%emt 0:02:53]} Rxb7 {[%emt 0:00:29]} 13. O-O {[%emt 0:00:09]} O-O {[%emt 0:00:34]} 14. Rfd1 {[%emt 0:01:26]} c6 {[%emt 0:01:41]} 15. a4 {[%emt 0:03:11]} Qe7 {[%emt 0:07:03]} 16. Ra3 {[%emt 0:03:55]} Rd8 {[%emt 0:01:47]} 17. Rd3 {[%emt 0:01:53]} h6 {[%emt 0:02:09]} 18. b3 {[%emt 0:03:19]} Rbd7 {[%emt 0:04:52]} 19. Qe3 {[%emt 0:02:17]} Qb4 {[%emt 0:05:27]} 20. Qf3 {[%emt 0:04:29]} Rd6 {[%emt 0:05:28]} 21. Nf4 {[%emt 0:03:19]} Qa5 {[%emt 0:09:45]} 22. Qe3 {[%emt 0:01:51]} a6 {[%emt 0:06:23][%cal Ba7a6,Ba6b5][%mdl 32]} 23. Qe5 {[%emt 0:04:53]} Qb4 {[%emt 0:03:15]} 24. Qe3 {[%emt 0:08:51]} b5 {[%emt 0:05:16]} 25. axb5 {[%emt 0:02:19]} axb5 {[%emt 0:00:05]} 26. Qd2 {[%emt 0:01:15]} (26. Qc1 $11) 26... Qxd2 $17 {[%emt 0:06:00]} 27. R1xd2 {[%emt 0:00:39]} Kf8 {[%emt 0:03:14]} 28. f3 {[%emt 0:00:40] Prevents Ne4.} Ke7 {[%emt 0:01:47]} 29. Kf2 {[%emt 0:00:23]} Ra8 {[%emt 0:01:31]} 30. Ke3 {[%emt 0:00:35]} Ra3 {[%emt 0:00:27] Weighted Error Value: White=0.10 (very precise) /Black=0.05 (flawless)} 1/2-1/2

[Event "Polish Youth B18 Championship 2023"]
[Site "Jastrzebia Gora"]
[Date "2023.03.13"]
[Round "3.5"]
[White "Ciszewski, Krzysztof"]
[Black "Czernek, Tymon"]
[Result "1/2-1/2"]
[ECO "E24"]
[WhiteElo "2047"]
[BlackElo "2314"]
[Annotator "TA"]
[PlyCount "41"]
[EventDate "2023.03.11"]
[EventType "swiss"]
[EventCountry "POL"]
[SourceTitle "playchess.com"]
[Source "ChessBase"]
[SourceQuality "1"]
[TimeControl "40/5400+30:1800+30"]

{[%evp 21,41,37,51,48,47,35,39,38,22,13,38,33,37,28,17,0,12,0,0,0,0,0]} 1. d4 {[%emt 0:01:03]} Nf6 {[%emt 0:00:08]} 2. c4 {[%emt 0:00:13]} e6 {[%emt 0:00:06]} 3. Nc3 {[%emt 0:00:06]} Bb4 {[%emt 0:00:04]} 4. a3 {[%emt 0:02:09]} Bxc3+ {[%emt 0:01:19]} 5. bxc3 {[%emt 0:00:06]} d5 {[%emt 0:01:16]} 6. e3 {[%emt 0:01:16]} O-O {[%emt 0:00:26]} 7. cxd5 {[%emt 0:01:53]} exd5 {[%emt 0:01:08]} 8. Bd3 {[%emt 0:00:23]} Re8 {[%emt 0:06:55]} 9. Ne2 {[%emt 0:00:50]} Nbd7 {[%emt 0:02:49]} 10. O-O {[%emt 0:00:27]} Nf8 {[%emt 0:02:39]} 11. f3 {[%emt 0:02:10]} c5 {[%emt 0:03:13] [#]} 12. a4 $146 {[%emt 0:07:52] E49: Nimzo-Indian: Rubinstein: 5 Bd3 d5 6 a3 Bxc3+ 7 bxc3.} ({Predecessor:} 12. Ng3 Ne6 13. Bb2 h5 14. Nh1 Bd7 15. Nf2 Qb6 16. Rb1 Rad8 17. Bc2 Bb5 18. Re1 Qa6 19. a4 Bc4 {½-½ Peralta,F (2595)-Fernandez Guillen,E (2390) Barcelona Sants op-A 23rd 2022 (3)}) 12... b6 {[%emt 0:01:12]} 13. Ra2 {[%emt 0:07:26]} Bd7 {[%emt 0:01:56]} 14. g4 {[%emt 0:12:49] White is slightly better.} h6 {[%emt 0:02:21]} 15. Ng3 {[%emt 0:04:12]} Qc7 {[%emt 0:02:15]} 16. Nf5 {[%emt 0:07:07]} Ng6 {[%emt 0:01:51]} 17. Re2 {[%emt 0:07:40]} Qc6 {[%emt 0:03:36]} 18. Bb5 {[%emt 0:01:45] The position is equal.} Qc7 {[%emt 0:00:57]} 19. Bd3 {[%emt 0:00:29]} Qc6 {[%emt 0:00:21]} 20. Bb5 {[%emt 0:00:17]} Qc7 {[%emt 0:00:42]} 21. Bd3 {[%emt 0:01:22] Weighted Error Value: White=0.07 (flawless) /Black=0.04 (flawless)} 1/2-1/2

[Event "Polish Youth B18 Championship 2023"]
[Site "Jastrzebia Gora"]
[Date "2023.03.13"]
[Round "3.6"]
[White "Chyzy, Jakub"]
[Black "Grzesik, Gracjan"]
[Result "1/2-1/2"]
[ECO "B90"]
[WhiteElo "2250"]
[BlackElo "2149"]
[Annotator "TA"]
[PlyCount "80"]
[EventDate "2023.03.11"]
[EventType "swiss"]
[EventCountry "POL"]
[SourceTitle "playchess.com"]
[Source "ChessBase"]
[SourceQuality "1"]
[TimeControl "40/5400+30:1800+30"]

{[%evp 15,80,2,16,0,25,-21,-6,-9,-8,-16,18,0,24,4,23,-30,-22,-26,0,-11,0,-6,-6,0,0,-5,26,0,68,68,70,70,64,64,71,68,168,29,29,11,34,34,34,33,62,56,70,63,70,52,57,52,84,83,76,83,76,81,74,45,42,20,22,4,4,0,9]} 1. e4 {[%emt 0:01:39]} c5 {[%emt 0:00:06]} 2. Nf3 {[%emt 0:00:13]} d6 {[%emt 0:00:05]} 3. d4 {[%emt 0:00:03]} cxd4 {[%emt 0:00:12]} 4. Nxd4 {[%emt 0:00:04]} Nf6 {[%emt 0:00:47]} 5. Nc3 {[%emt 0:00:04]} a6 {[%emt 0:00:18]} 6. Bd3 {[%emt 0:00:06]} e5 {[%emt 0:04:36]} 7. Nde2 {[%emt 0:00:57]} Be7 {[%emt 0:04:09]} 8. O-O {[%emt 0:00:12]} O-O {[%emt 0:04:20]} 9. Ng3 {[%emt 0:00:17] B90: Sicilian Najdorf: Unusual White 6th moves, 6 Be3 Ng4 and 6 Be3 e5.} b5 {[%emt 0:08:24][%cal Bb7b5,Bb5b4][%mdl 32]} 10. a4 {[%emt 0:25:08]} (10. Re1 $142) 10... b4 $1 $11 {[%emt 0:05:53]} 11. Nd5 {[%emt 0:00:05]} Nxd5 {[%emt 0:02:39]} 12. exd5 {[%emt 0:00:01]} f5 {[%emt 0:17:30] [#]} (12... Nd7 {keeps more tension.} 13. Qg4 Nc5 14. Bf5 g6) 13. a5 $146 {[%emt 0:00:25]} ({Predecessor:} 13. Re1 e4 14. Nxe4 fxe4 15. Rxe4 Bf5 16. Rxb4 Nd7 17. Be3 Nc5 18. Bxf5 Rxf5 19. Qe2 {0-1 Meyer,G-Roescher,M Dortmund op-B 1998}) 13... e4 {[%emt 0:04:27]} 14. Be2 {[%emt 0:12:17]} Nd7 {[%emt 0:05:43]} 15. f3 {[%emt 0:02:46]} ({Better is} 15. Bd2) 15... exf3 $1 {[%emt 0:07:38]} 16. Bxf3 {[%emt 0:07:07]} Nc5 {[%emt 0:09:54]} 17. Be3 {[%emt 0:11:01] [#] Black must now prevent Bxc5.} Qc7 {[%emt 0:02:40] aiming for ...f4.} 18. Nh5 {[%emt 0:07:11]} g6 {[%emt 0:04:09]} 19. Nf4 {[%emt 0:00:16][%cal Of4e6]} Rb8 {[%emt 0:06:57]} 20. Re1 {[%emt 0:03:39]} Bg5 {[%emt 0:07:37]} (20... Ne4 {is interesting.} 21. Bd4 Bh4 22. Re2 Bg5) 21. Kh1 {[%emt 0:01:11][%cal Of4g6] And now Nxg6! would win.} Ne4 {[%emt 0:02:04]} ({Black should play} 21... Bh4 $11) 22. Bxe4 $14 {[%emt 0:03:25]} Bxf4 {[%emt 0:00:43]} 23. Bxf4 {[%emt 0:00:13]} fxe4 {[%emt 0:00:04]} 24. Rxe4 {[%emt 0:00:48] Qe1 would be deadly.} Bf5 {[%emt 0:00:47]} 25. Re1 {[%emt 0:09:03]} ({Don't go for} 25. Re2 $2 Bg4 26. Bg3 Rbe8 27. Rxe8 Bxd1 28. Rxf8+ Kxf8 $19) 25... Rbd8 {[%emt 0:00:45] [#]} ({Black should try} 25... Qc5 $14) 26. Qd4 {[%emt 0:01:28]} (26. Bh6 $1 $18 {[%cal Rh6f8]}) 26... Qc5 $1 $11 {[%emt 0:00:31] Black is weak on the dark squares} 27. c3 {[%emt 0:08:26]} (27. Qxc5 {simplifies} dxc5 28. Bh6 Rfe8 29. c4) 27... bxc3 {[%emt 0:00:30]} 28. Qxc3 {[%emt 0:00:33]} Qxc3 {[%emt 0:00:29]} 29. bxc3 {[%emt 0:00:01]} Rfe8 {[%emt 0:00:32]} 30. Kg1 {[%emt 0:04:23]} Bd3 {[%emt 0:00:27]} 31. Red1 {[%emt 0:01:46]} Bb5 {[%emt 0:00:32]} 32. Rd4 {[%emt 0:00:53]} (32. Rac1 $5 {[%cal Rd1d4]}) 32... Rc8 {[%emt 0:00:30]} 33. Rc1 {[%emt 0:00:44]} Rc4 34. Bxd6 {[%emt 0:00:28]} Rd8 {[%emt 0:00:59]} 35. Be5 {[%emt 0:00:31]} Rxd4 {[%emt 0:00:31]} 36. cxd4 {[%emt 0:00:24] Hoping for Rc5.} Rxd5 {[%emt 0:00:02]} 37. Rc8+ {[%emt 0:00:20]} Kf7 {[%emt 0:00:13]} 38. Kf2 {[%emt 0:00:45]} Bd7 {[%emt 0:01:04][%csl LRa5,LRc8] The position is equal.} 39. Rh8 {[%emt 0:00:27]} h5 {[%emt 0:00:39]} 40. Rh7+ {[%emt 0:00:00]} Ke6 {[%emt 0:00:00] Weighted Error Value: White=0.19 (very precise) /Black=0.13 (very precise)} 1/2-1/2

[Event "Polish Youth B18 Championship 2023"]
[Site "Jastrzebia Gora"]
[Date "2023.03.13"]
[Round "3.7"]
[White "Backiel, Hubert"]
[Black "Kacprzak, Kacper"]
[Result "0-1"]
[ECO "B52"]
[WhiteElo "2127"]
[BlackElo "2248"]
[Annotator "TA"]
[PlyCount "102"]
[EventDate "2023.03.11"]
[EventType "swiss"]
[EventCountry "POL"]
[SourceTitle "playchess.com"]
[Source "ChessBase"]
[SourceQuality "1"]
[TimeControl "40/5400+30:1800+30"]

{[%evp 10,102,21,26,26,26,29,29,31,29,23,0,15,10,20,0,7,0,26,0,41,37,27,18,10,13,22,0,0,-12,-12,-7,0,2,24,-192,-189,-185,-185,-201,-194,-194,-193,-242,-245,-264,-248,-280,-281,-300,-303,-302,-306,-325,-302,-355,-347,-356,-354,-343,-297,-403,-391,-422,-379,-436,-438,-458,-468,-512,-459,-452,-446,-415,-358,-366,-363,-357,-352,-392,-389,-389,-381,-408,-396,-469,-465,-522,-520,-825,-800,-1077,-1043,-976,-940]} 1. e4 {[%emt 0:01:38]} c5 {[%emt 0:00:02]} 2. Nf3 {[%emt 0:00:07]} d6 {[%emt 0:00:39]} 3. Bb5+ {[%emt 0:00:18]} Bd7 {[%emt 0:01:00]} 4. Bxd7+ {[%emt 0:00:07]} Qxd7 {[%emt 0:01:00]} 5. c4 {[%emt 0:00:28]} Nf6 {[%emt 0:00:06]} 6. Nc3 {[%emt 0:00:03]} g6 {[%emt 0:00:04] B52: Sicilian: Moscow Variation with 3...Bd7.} 7. d4 {[%emt 0:00:04]} cxd4 {[%emt 0:00:04]} 8. Nxd4 {[%emt 0:00:04]} Bg7 {[%emt 0:00:04] White has an edge.} 9. h3 {[%emt 0:00:14]} Qc7 {[%emt 0:01:06]} 10. Qe2 {[%emt 0:00:13]} O-O {[%emt 0:11:07]} 11. O-O {[%emt 0:01:25]} Nc6 {[%emt 0:02:29]} 12. Nc2 {[%emt 0:00:05]} Rac8 {[%emt 0:11:45]} 13. Rb1 {[%emt 0:10:53] [#]} Nd7 $146 {[%emt 0:06:49]} ({Predecessor:} 13... a6 14. a3 Na5 15. b3 b5 16. Nb4 e6 17. Nxa6 Qb7 18. Nb4 bxc4 19. bxc4 Qa8 {½-½ Barbalic,Z (2067)-Stone,G (2057) FIN jub50 Gr30 email 2012}) 14. Bd2 {[%emt 0:03:55]} (14. Nd5 $5 {[%cal Rd5c7]} Qb8 15. Rd1 $11) 14... Nc5 {[%emt 0:05:13]} (14... Bxc3 $5 15. Bxc3 Na5 $11) 15. Rfd1 {[%emt 0:04:15]} Qd7 {[%emt 0:04:18]} 16. Be3 {[%emt 0:16:17]} Bxc3 {[%emt 0:02:14]} 17. Bxc5 {[%emt 0:00:05]} Bg7 {[%emt 0:00:57]} 18. Ba3 {[%emt 0:04:40]} Qe6 {[%emt 0:01:54]} 19. b3 {[%emt 0:02:59]} f5 {[%emt 0:08:01]} 20. Re1 {[%emt 0:04:55]} Bc3 {[%emt 0:03:30]} 21. exf5 {[%emt 0:00:24]} Qxf5 {[%emt 0:00:58]} (21... Qxe2 {simplifies} 22. Rxe2 Rxf5 23. Bc1 Kf7) 22. Qe6+ $2 {[%emt 0:05:48] [#] This costs White the game.} (22. Red1 $11 {and White has nothing to worry.}) 22... Qxe6 $1 $19 {[%emt 0:01:05]} 23. Rxe6 {[%emt 0:00:08]} Be5 {[%emt 0:00:17]} 24. Bb2 {[%emt 0:21:49]} Kf7 {[%emt 0:00:28]} 25. Rxe5 {[%emt 0:00:36]} dxe5 {[%emt 0:00:53]} 26. Re1 {[%emt 0:02:10]} (26. Ne3 {was necessary.}) 26... Rfd8 {[%emt 0:01:34] ...Rd2 is the strong threat.} 27. Bc1 {[%emt 0:01:42] Dodges Rd2} Rd3 {[%emt 0:03:31]} ({Stronger than} 27... Nd4 28. Ne3 $17) 28. Ne3 {[%emt 0:02:55]} a5 {[%emt 0:01:04]} 29. Kf1 {[%emt 0:00:55] [#]} a4 $1 {[%emt 0:01:31]} 30. bxa4 {[%emt 0:07:26]} Na5 {[%emt 0:02:23]} 31. Ke2 {[%emt 0:04:24]} Rdd8 {[%emt 0:02:04]} 32. c5 {[%emt 0:01:54]} Rxc5 {[%emt 0:01:03]} 33. Ba3 {[%emt 0:00:07]} Rc7 {[%emt 0:01:17]} 34. Rb1 {[%emt 0:00:35]} Rd4 {[%emt 0:00:53]} 35. Bb2 {[%emt 0:01:03]} Rxa4 {[%emt 0:00:59]} 36. Bxe5 {[%emt 0:00:08]} Rxa2+ {[%emt 0:00:14]} 37. Kf3 {[%emt 0:00:06]} Rd7 {[%emt 0:05:59]} 38. Bc3 {[%emt 0:01:44]} Nc6 {[%emt 0:00:42]} 39. Rb6 {[%emt 0:01:14]} Ra3 {[%emt 0:04:06]} 40. Bb2 {[%emt 0:00:00]} Ra4 {[%emt 0:00:00]} 41. Bc3 {[%emt 0:01:28]} Nd4+ {[%emt 0:00:53]} ({Wrong is} 41... Rd3 $2 42. Bb2 $19) 42. Bxd4 {[%emt 0:00:17]} Raxd4 {[%emt 0:00:03][%mdl 4096] Endgame KRR-KRN} 43. Ng4 {[%emt 0:00:56]} Rc7 {[%emt 0:00:39]} ({Don't blunder} 43... Rd3+ $2 44. Ke2 R3d5 45. Kf3 $19) 44. Rb3 {[%emt 0:00:59]} h5 {[%emt 0:01:05]} 45. Ne3 {[%emt 0:00:09]} Rd6 {[%emt 0:00:34]} 46. g4 {[%emt 0:01:31]} hxg4+ {[%emt 0:00:08]} 47. hxg4 {[%emt 0:00:05]} b6 {[%emt 0:00:10][%cal Bb7b6,Bb6b5][%mdl 32] Black is clearly winning.} 48. Kg3 {[%emt 0:00:21]} Rc5 {[%emt 0:00:54]} 49. f4 {[%emt 0:00:16]} (49. Ng2 $142 b5 50. Ne1) 49... b5 {[%emt 0:00:33] ...Rd4 would be deadly.} 50. Kf3 {[%emt 0:01:37]} Rd4 {[%emt 0:00:30] And now ...b4 would win.} 51. f5 {[%emt 0:00:08]} g5 {[%emt 0:00:17] Weighted Error Value: White=0.40/Black=0.08 (flawless)} 0-1

[Event "Polish Youth B18 Championship 2023"]
[Site "Jastrzebia Gora"]
[Date "2023.03.13"]
[Round "3.8"]
[White "Karolczuk, Iwo"]
[Black "Krasniewski, Szymon"]
[Result "1-0"]
[ECO "B24"]
[WhiteElo "2346"]
[BlackElo "1771"]
[Annotator "TA"]
[PlyCount "83"]
[EventDate "2023.03.11"]
[EventType "swiss"]
[EventCountry "POL"]
[SourceTitle "playchess.com"]
[Source "ChessBase"]
[SourceQuality "1"]
[TimeControl "40/5400+30:1800+30"]

{[%evp 9,83,26,44,20,33,37,52,35,49,53,77,60,40,56,60,60,69,15,6,14,0,14,84,0,8,0,0,-22,11,0,0,-43,27,-45,0,-4,-10,-26,-26,-172,-173,-236,-227,-208,-146,-188,-145,-221,-102,-100,-96,-84,-91,-337,0,0,224,0,0,0,45,46,474,464,470,434,452,286,280,272,419,369,697,743,664,666]} 1. e4 {[%emt 0:00:05]} c5 {[%emt 0:00:09]} 2. Nc3 {[%emt 0:00:30]} Nc6 {[%emt 0:00:04]} 3. Bb5 {[%emt 0:00:07]} g6 {[%emt 0:00:45]} 4. Bxc6 {[%emt 0:00:07]} dxc6 {[%emt 0:00:35]} 5. d3 {[%emt 0:00:26]} Bg7 {[%emt 0:00:40][%cal Oc5c4]} 6. f4 {[%emt 0:00:58] B23: Closed Sicilian: Lines without g3.} Nf6 {[%emt 0:01:18][%cal Oc5c4]} 7. Nf3 {[%emt 0:01:00]} O-O {[%emt 0:00:31][%cal Oc5c4]} 8. Be3 {[%emt 0:05:45] White is slightly better.} b6 {[%emt 0:00:55]} 9. Qd2 {[%emt 0:00:25]} a5 {[%emt 0:07:15]} 10. a4 {[%emt 0:01:34]} Qc7 {[%emt 0:01:10]} 11. h3 {[%emt 0:02:20]} Ba6 {[%emt 0:06:34] [#]} 12. O-O $146 {[%emt 0:05:01]} ({Predecessor:} 12. g4 Rad8 13. Qf2 Rfe8 14. O-O Bc8 15. Qh4 h5 16. f5 Ba6 17. Ng5 hxg4 18. hxg4 c4 19. d4 b5 20. e5 Nd5 21. Nxd5 Rxd5 22. Qh7+ Kf8 23. Ne6+ {1-0 Neuman,P (2476)-Hlavac,R (2083) Marianske Lazne op 2011 (5)}) 12... c4 {[%emt 0:11:13]} 13. d4 {[%emt 0:02:27]} ({White should try} 13. dxc4 $14 Bxc4 14. Rfd1) 13... b5 $1 $11 {[%emt 0:02:43]} 14. axb5 {[%emt 0:09:59]} cxb5 {[%emt 0:00:32]} 15. e5 {[%emt 0:00:57]} Ne8 {[%emt 0:05:20]} (15... b4 $11 {keeps the balance.} 16. exf6 bxc3 17. Qxc3 exf6) 16. Ne4 {[%emt 0:04:22] White is more active.} (16. Rfd1 $16) 16... Bb7 {[%emt 0:02:15]} 17. Nc5 {[%emt 0:00:48][%cal Of4f5]} Bd5 {[%emt 0:00:56][%cal Oe8d6] Wards off f5} 18. Qe1 {[%emt 0:10:14]} e6 {[%emt 0:12:17]} 19. g4 {[%emt 0:11:14][%cal Of4f5]} Qc6 {[%emt 0:03:11]} 20. Qg3 {[%emt 0:00:25][%cal Of4f5]} Nc7 {[%emt 0:05:08]} (20... f5 $1 $15) 21. Nh4 {[%emt 0:10:33]} (21. f5 $11) 21... f5 {[%emt 0:09:21]} (21... Na6 {simplifies} 22. Rxa5 Nxc5 23. Rxa8 Rxa8 24. dxc5 b4) 22. exf6 $1 {[%emt 0:01:43]} Bxf6 {[%emt 0:02:31]} 23. f5 {[%emt 0:00:40]} gxf5 {[%emt 0:03:12]} 24. gxf5+ {[%emt 0:14:30]} (24. Kh2 $11 {and White has nothing to worry.}) 24... Kh8 $19 {[%emt 0:00:18] ...exf5 is the strong threat.} 25. Kh2 {[%emt 0:02:17]} (25. Rf4 $142 exf5 26. Nxf5) 25... exf5 {[%emt 0:09:35]} 26. Rg1 {[%emt 0:04:24]} (26. Nxf5 $2 {too greedy.} Rg8 27. Bf4 Rxg3 $19) 26... Rg8 {[%emt 0:03:32]} 27. Qf2 {[%emt 0:01:31]} Ne6 {[%emt 0:04:53]} 28. Nxf5 {[%emt 0:02:40]} (28. Nxe6 $17 Bxe6 29. Qf4) 28... Qc7+ {[%emt 0:01:07]} (28... Ng5 $1 $19 {[%cal Rg5f3] is more deadly. White must now prevent ...Nf3+.} 29. Nh4 Rae8) 29. Ng3 $17 {[%emt 0:02:38]} Raf8 {[%emt 0:00:45]} 30. Nxe6 {[%emt 0:01:06][%mdl 64] Remove Defender} Bxe6 {[%emt 0:00:03] A strong pair of Bishops.} 31. Raf1 $2 {[%emt 0:00:40]} (31. Bf4 $17 Qd7 32. c3 Bxh3 33. Nh5) 31... Rf7 $2 {[%emt 0:04:07]} (31... Be5 $1 $19 32. dxe5 (32. Qxf8 $2 {is the wrong capture.} Bxg3+ 33. Kh1 Rxf8 $19) 32... Rxf2+ 33. Rxf2 c3) 32. Bf4 $11 {[%emt 0:01:43]} Qd8 {[%emt 0:01:03] [#]} (32... Qd7 $1 $11 33. Nh5 Rxg1 34. Qxg1 Bxd4) 33. c3 $2 {[%emt 0:00:44]} (33. Nh5 $1 $18 Qxd4 34. Rxg8+ Kxg8 35. Qg3+ Bg7 36. Rg1) 33... Qd5 {[%emt 0:00:16]} 34. Qe2 {[%emt 0:01:00] Threatens to win with Nh5.} Rg6 {[%emt 0:02:12]} 35. Nh5 {[%emt 0:02:33] Strongly threatening Nxf6.} Be7 {[%emt 0:00:37][%mdl 8192] [#]} ({Better is} 35... Kg8 $1 $14) 36. Be5+ $1 $18 {[%emt 0:00:11]} Kg8 {[%emt 0:00:02]} 37. Nf4 {[%emt 0:00:40]} Rxf4 {[%emt 0:00:42]} 38. Rxg6+ {[%emt 0:00:19]} ({Not} 38. Bxf4 Qf5 39. Rg4 Qd5 $18) 38... hxg6 {[%emt 0:00:01]} 39. Rxf4 {[%emt 0:00:24]} Bg5 {[%emt 0:01:27]} (39... Bd7 {might work better.} 40. Rf1 a4) 40. Rf1 {[%emt 0:00:00] Rg1 would be deadly.} Bf5 $2 {[%emt 0:00:00] [#]} (40... Be7 41. h4 Bd7) 41. Rxf5 $1 {[%emt 0:05:37][%mdl 576] Deflection} gxf5 {[%emt 0:00:37]} 42. Qh5 {[%emt 0:00:09] Excellently played by Karolczuk!   Weighted Error Value: White=0.45/Black=0.74} 1-0